fUSD/lending_fUSD_20251220
["ID","MTS","AMOUNT","RATE_DAILY","PERIOD"]
[399248976,1766203851555,-434.0,0.00017535,2]
[399248977,1766203851564,-519.0,0.00017535,2]
[399248978,1766203851573,-500.0,0.00017535,2]
[399248979,1766203851583,-500.0,0.00017535,2]
[399248980,1766203851592,-1222.0,0.00017535,2]
[399248981,1766203851602,-554.0,0.00017535,2]
[399248982,1766203851612,-205.6158133,0.00017535,2]
[399248983,1766203851621,-426.0,0.00017599,2]
[399248984,1766203851631,-1000.0,0.000176,2]
[399248985,1766203851640,-3251.47,0.00017603,2]
[399248986,1766203851650,-452.8,0.00017634,2]
[399248987,1766203851660,-500.0,0.00017658,2]
[399248988,1766203851669,-500.0,0.00017672,2]
[399248989,1766203851678,-761.0,0.00017672,2]
[399248990,1766203851688,-622.0,0.00017672,2]
[399248991,1766203851698,-500.0,0.00017672,2]
[399248992,1766203851707,-500.0,0.00017672,2]
[399248993,1766203851718,-545.0,0.00017672,2]
[399248994,1766203851728,-720.0,0.00017672,2]
[399248995,1766203851737,-500.0,0.00017672,2]
[399248996,1766203851748,-1693.0,0.00017672,2]
[399248997,1766203851761,-566.0,0.00017672,2]
[399248998,1766203851770,-500.0,0.00017672,2]
[399248999,1766203851779,-434.0,0.00017672,2]
[399249000,1766203851788,-519.0,0.00017672,2]
[399249001,1766203851798,-500.0,0.00017672,2]
[399249002,1766203851807,-220.23803723,0.00017672,2]
[399249003,1766203851817,-1222.0,0.00017672,2]
[399249004,1766203851828,-554.0,0.00017672,2]
[399249005,1766203851838,-403.0,0.000177,5]
[399249006,1766203851847,-2049.70985306,0.00017748,2]
[399249007,1766203851857,-1014.0,0.00017758,2]
[399249008,1766203851866,-1034.0,0.0001776,2]
[399249009,1766203851876,-500.0,0.00017795,2]
[399249010,1766203851885,-500.0,0.00017808,2]
[399249011,1766203851894,-500.0,0.00017809,2]
[399249012,1766203851904,-761.0,0.00017809,2]
[399249013,1766203851914,-622.0,0.00017809,2]
[399249014,1766203851923,-500.0,0.00017809,2]
[399249015,1766203851933,-500.0,0.00017809,2]
[399249016,1766203851942,-545.0,0.00017809,2]
[399249017,1766203851952,-720.0,0.00017809,2]
[399249018,1766203851962,-500.0,0.00017809,2]
[399249019,1766203851972,-1693.0,0.00017809,2]
[399249020,1766203851982,-566.0,0.00017809,2]
[399249021,1766203851992,-500.0,0.00017809,2]
[399249022,1766203852002,-434.0,0.00017809,2]
[399249023,1766203852012,-519.0,0.00017809,2]
[399249024,1766203852022,-291.42851787,0.00017809,2]
[399249025,1766203852033,-1222.0,0.00017809,2]
[399249026,1766203852044,-554.0,0.00017809,2]
[399249027,1766203852055,-1014.0,0.00017821,2]
[399249028,1766203852064,-1014.0,0.00017833,2]
[399249029,1766203852074,-152.0,0.00017844,3]
[399249030,1766203852084,-1014.0,0.00017858,2]
[399249031,1766203852094,-1014.0,0.00017879,2]
[399249032,1766203852104,-415.93668933,0.00017932,2]
[399249033,1766203852113,-1600.0,0.00017933,2]
[399249034,1766203852123,-500.0,0.00017945,2]
[399249035,1766203852133,-500.0,0.00017946,2]
[399249036,1766203852143,-761.0,0.00017946,2]
[399249037,1766203852152,-622.0,0.00017946,2]
[399249038,1766203852162,-500.0,0.00017946,2]
[399249039,1766203852171,-500.0,0.00017946,2]
[399249040,1766203852181,-545.0,0.00017946,2]
[399249041,1766203852191,-720.0,0.00017946,2]
[399249042,1766203852201,-500.0,0.00017946,2]
[399249043,1766203852211,-1693.0,0.00017946,2]
[399249044,1766203852220,-566.0,0.00017946,2]
[399249045,1766203852229,-500.0,0.00017946,2]
[399249046,1766203852239,-434.0,0.00017946,2]
[399249047,1766203852249,-519.0,0.00017946,2]
[399249048,1766203852259,-1222.0,0.00017946,2]
[399249049,1766203852268,-554.0,0.00017946,2]
[399249050,1766203852278,-153.00520489,0.00017974,2]
[399249051,1766203852288,-500.0,0.00017999,2]
[399249052,1766203852298,-352.29799785,0.00017999,2]
[399249053,1766203852308,-500.0,0.00017999,2]
[399249054,1766203852318,-14074.02821794,0.00018,2]
[399249055,1766203852331,-258.39013124,0.00018,2]
[399249056,1766203852343,-327885.41662344,0.00018,2]
[399249057,1766203852352,-12325.12199996,0.00018,2]
[399249058,1766203852362,-7164.51387999,0.00018,2]
[399249059,1766203852372,-300.663889,0.00018,2]
[399249060,1766203852382,-151.0,0.00018,2]
[399249061,1766203852391,-151.0,0.00018,2]
[399249062,1766203852400,-151.0,0.00018,2]
[399249063,1766203852410,-151.0,0.00018,2]
[399249064,1766203852419,-151.0,0.00018,2]
[399249065,1766203852429,-151.0,0.00018,2]
[399249066,1766203852439,-151.0,0.00018,2]
[399249067,1766203852448,-151.0,0.00018,2]
[399249068,1766203852458,-151.0,0.00018,2]
[399249069,1766203852468,-180.627099,0.00018,2]
[399249070,1766203852479,-180.627099,0.00018,2]
[399249071,1766203852489,-180.627099,0.00018,2]
[399249072,1766203852499,-180.627099,0.00018,2]
[399249073,1766203852509,-227.386957,0.00018,2]
[399249074,1766203852520,-227.386957,0.00018,2]
[399249075,1766203852529,-227.386957,0.00018,2]
[399249076,1766203852539,-227.386957,0.00018,2]
[399249077,1766203852549,-151.0,0.00018,2]
[399249078,1766203852559,-151.0,0.00018,2]
[399249079,1766203852569,-151.0,0.00018,2]
[399249080,1766203852579,-151.0,0.00018,2]
[399249081,1766203852589,-151.0,0.00018,2]
[399249082,1766203852598,-151.0,0.00018,2]
[399249083,1766203852608,-151.0,0.00018,2]
[399249084,1766203852617,-151.0,0.00018,2]
[399249085,1766203852627,-151.0,0.00018,2]
[399249086,1766203852636,-151.0,0.00018,2]
[399249087,1766203852645,-151.0,0.00018,2]
[399249088,1766203852655,-1014.0,0.00018001,2]
[399249089,1766203852665,-215.0738,0.00018021,2]
[399249090,1766203852675,-1034.0,0.00018065,2]
[399249091,1766203852685,-740.38982778,0.00018072,2]
[399249092,1766203852694,-500.0,0.00018082,2]
[399249093,1766203852704,-1000.0,0.00018082,2]
[399249094,1766203852714,-500.0,0.00018083,2]
[399249095,1766203852724,-761.0,0.00018083,2]
[399249096,1766203852734,-622.0,0.00018083,2]
[399249097,1766203852744,-230.7089659,0.00018083,2]
[399249098,1766203852758,-500.0,0.00018083,2]
[399249099,1766203852768,-545.0,0.00018083,2]
[399249100,1766203852777,-720.0,0.00018083,2]
[399249101,1766203852787,-500.0,0.00018083,2]
[399249102,1766203852798,-1693.0,0.00018083,2]
[399249103,1766203852807,-566.0,0.00018083,2]
[399249104,1766203852817,-500.0,0.00018083,2]
[399249105,1766203852829,-434.0,0.00018083,2]
[399249106,1766203852839,-519.0,0.00018083,2]
[399249107,1766203852848,-1222.0,0.00018083,2]
[399249108,1766203852857,-554.0,0.00018083,2]
[399249109,1766203852867,-160.47,0.00018083,2]
[399249110,1766203852877,-196.99,0.00018103,2]
[399249111,1766203852888,-1014.0,0.00018148,2]
[399249112,1766203852898,-1014.0,0.00018156,2]
[399249113,1766203852908,-152.0,0.00018214,4]
[399249114,1766203852919,-426.0,0.00018219,2]
[399249115,1766203852930,-500.0,0.00018219,2]
[399249116,1766203852940,-500.0,0.0001822,2]
[399249117,1766203852950,-761.0,0.0001822,2]
[399249118,1766203852961,-622.0,0.0001822,2]
[399249119,1766203852971,-151.31035432,0.0001822,2]
[399249120,1766203852981,-545.0,0.0001822,2]
[399249121,1766203852990,-720.0,0.0001822,2]
[399249122,1766203853002,-500.0,0.0001822,2]
[399249123,1766203853012,-1693.0,0.0001822,2]
[399249124,1766203853021,-566.0,0.0001822,2]
[399249125,1766203853031,-550.62704032,0.0001822,2]
[399249126,1766203853042,-434.0,0.0001822,2]
[399249127,1766203853051,-519.0,0.0001822,2]
[399249128,1766203853061,-1222.0,0.0001822,2]
[399249129,1766203853070,-554.0,0.0001822,2]
[399249130,1766203853080,-160.46667428,0.0001822,2]
[399249131,1766203853089,-196.99,0.00018233,2]
[399249132,1766203853099,-1014.0,0.00018292,2]
[399249133,1766203853108,-452.8,0.00018339,2]
[399249134,1766203853117,-334.5472959,0.00018343,2]
[399249135,1766203853127,-500.0,0.00018356,2]
[399249136,1766203853137,-18395.32,0.00018356,2]
[399249137,1766203853146,-500.0,0.00018357,2]
[399249138,1766203853156,-761.0,0.00018357,2]
[399249139,1766203853165,-622.0,0.00018357,2]
[399249140,1766203853175,-545.0,0.00018357,2]
[399249141,1766203853184,-720.0,0.00018357,2]
[399249142,1766203853193,-500.0,0.00018357,2]
[399249143,1766203853203,-1693.0,0.00018357,2]
[399249144,1766203853212,-566.0,0.00018357,2]
[399249145,1766203853221,-434.0,0.00018357,2]
[399249146,1766203853231,-519.0,0.00018357,2]
[399249147,1766203853240,-1222.0,0.00018357,2]
[399249148,1766203853249,-554.0,0.00018357,2]
[399249149,1766203853258,-1014.0,0.00018376,2]
[399249150,1766203853268,-365.09176189,0.00018493,2]
[399249151,1766203853277,-500.0,0.00018494,2]
[399249152,1766203853286,-761.0,0.00018494,2]
[399249153,1766203853296,-622.0,0.00018494,2]
[399249154,1766203853305,-545.0,0.00018494,2]
[399249155,1766203853315,-720.0,0.00018494,2]
[399249156,1766203853324,-355.39654287,0.00018494,2]
[399249157,1766203853335,-1693.0,0.00018494,2]
[399249158,1766203853344,-566.0,0.00018494,2]
[399249159,1766203853353,-434.0,0.00018494,2]
[399249160,1766203853363,-519.0,0.00018494,2]
[399249161,1766203853372,-554.0,0.00018494,2]
[399249162,1766203853381,-1222.0,0.00018494,2]
[399249163,1766203853390,-152.0,0.00018585,5]
[399249164,1766203853399,-767.7842514,0.0001862,2]
[399249165,1766203853408,-500.0,0.00018631,2]
[399249166,1766203853417,-761.0,0.00018631,2]
[399249167,1766203853427,-622.0,0.00018631,2]
[399249168,1766203853436,-545.0,0.00018631,2]
[399249169,1766203853445,-720.0,0.00018631,2]
[399249170,1766203853454,-1693.0,0.00018631,2]
[399249171,1766203853463,-566.0,0.00018631,2]
[399249172,1766203853472,-434.0,0.00018631,2]
[399249173,1766203853482,-519.0,0.00018631,2]
[399249174,1766203853491,-554.0,0.00018631,2]
[399249175,1766203853500,-1222.0,0.00018631,2]
[399249176,1766203853510,-152.0,0.00018667,2]
[399249177,1766203853519,-152.0,0.00018667,2]
[399249178,1766203853529,-1255.0,0.00018667,2]
[399249179,1766203853539,-152.0,0.00018667,2]
[399249180,1766203853549,-152.0,0.00018667,2]
[399249181,1766203853558,-152.0,0.00018667,2]
[399249182,1766203853568,-1255.0,0.00018667,2]
[399249183,1766203853577,-152.0,0.00018667,2]
[399249184,1766203853587,-836.0,0.00018667,2]
[399249185,1766203853596,-1255.0,0.00018667,2]
[399249186,1766203853606,-152.0,0.00018667,2]
[399249187,1766203853616,-152.0,0.00018667,2]
[399249188,1766203853628,-836.0,0.00018667,2]
[399249189,1766203853638,-152.0,0.00018667,2]
[399249190,1766203853647,-1255.0,0.00018667,2]
[399249191,1766203853657,-836.0,0.00018667,2]
[399249192,1766203853666,-152.0,0.00018667,2]
[399249193,1766203853676,-152.0,0.00018667,2]
[399249194,1766203853685,-1255.0,0.00018667,2]
[399249195,1766203853695,-836.0,0.00018667,2]
[399249196,1766203853704,-152.0,0.00018667,2]
[399249197,1766203853713,-152.0,0.00018667,2]
[399249198,1766203853722,-1255.0,0.00018667,2]
[399249199,1766203853732,-836.0,0.00018667,2]
[399249200,1766203853742,-152.0,0.00018667,2]
[399249201,1766203853753,-1255.0,0.00018667,2]
[399249202,1766203853762,-152.0,0.00018667,2]
[399249203,1766203853772,-502.21031226,0.00018667,2]
[399249204,1766203853781,-152.0,0.00018667,2]
[399249205,1766203853791,-152.0,0.00018667,2]
[399249206,1766203853799,-1255.0,0.00018667,2]
[399249207,1766203853809,-152.0,0.00018667,2]
[399249208,1766203853818,-152.0,0.00018667,2]
[399249209,1766203853829,-1255.0,0.00018667,2]
[399249210,1766203853839,-152.0,0.00018667,2]
[399249211,1766203853848,-152.0,0.00018667,2]
[399249212,1766203853857,-1255.0,0.00018667,2]
[399249213,1766203853867,-152.0,0.00018667,2]
[399249214,1766203853877,-152.0,0.00018667,2]
[399249215,1766203853887,-1255.0,0.00018667,2]
[399249216,1766203853896,-152.0,0.00018667,2]
[399249217,1766203853906,-152.0,0.00018667,2]
[399249218,1766203853915,-1255.0,0.00018667,2]
[399249219,1766203853924,-152.0,0.00018667,2]
[399249220,1766203853933,-152.0,0.00018667,2]
[399249221,1766203853942,-1255.0,0.00018667,2]
[399249222,1766203853951,-152.0,0.00018667,2]
[399249223,1766203853961,-152.0,0.00018667,2]
[399249224,1766203853970,-1255.0,0.00018667,2]
[399249225,1766203853979,-152.0,0.00018667,2]
[399249226,1766203853988,-152.0,0.00018667,2]
[399249227,1766203853997,-1255.0,0.00018667,2]
[399249228,1766203854006,-152.0,0.00018667,2]
[399249229,1766203854016,-152.0,0.00018667,2]
[399249230,1766203854025,-1255.0,0.00018667,2]
[399249231,1766203854034,-152.0,0.00018667,2]
[399249232,1766203854043,-152.0,0.00018667,2]
[399249233,1766203854052,-1389.72421018,0.00018667,2]
[399249234,1766203854062,-152.0,0.00018667,2]
[399249235,1766203854071,-152.0,0.00018667,2]
[399249236,1766203854080,-152.0,0.00018667,2]
[399249237,1766203854090,-152.0,0.00018667,2]
[399249238,1766203854099,-152.0,0.00018667,2]
[399249239,1766203854108,-152.0,0.00018667,2]
[399249240,1766203854117,-152.0,0.00018667,2]
[399249241,1766203854127,-152.0,0.00018667,2]
[399249242,1766203854136,-286.13362621,0.00018667,2]
[399249243,1766203854146,-152.0,0.00018667,2]
[399249244,1766203854155,-152.0,0.00018667,2]
[399249245,1766203854164,-152.0,0.00018667,2]
[399249246,1766203854173,-152.0,0.00018667,2]
[399249247,1766203854182,-152.0,0.00018667,2]
[399249248,1766203854191,-152.0,0.00018667,2]
[399249249,1766203854200,-152.0,0.00018667,2]
[399249250,1766203854209,-152.0,0.00018667,2]
[399249251,1766203854218,-152.0,0.00018667,2]
[399249252,1766203854228,-152.0,0.00018667,2]
[399249253,1766203854237,-152.0,0.00018667,2]
[399249254,1766203854246,-152.0,0.00018667,2]
[399249255,1766203854256,-152.0,0.00018667,2]
[399249256,1766203854269,-152.0,0.00018667,2]
[399249257,1766203854279,-152.0,0.00018667,2]
[399249258,1766203854288,-152.0,0.00018667,2]
[399249259,1766203854297,-152.0,0.00018667,2]
[399249260,1766203854306,-152.0,0.00018667,2]
[399249261,1766203854315,-152.0,0.00018667,2]
[399249262,1766203854324,-152.0,0.00018667,2]
[399249263,1766203854335,-152.0,0.00018667,2]
[399249264,1766203854346,-207.51877522,0.00018667,2]
[399249265,1766203854358,-153.7273815,0.00018667,2]
[399249266,1766203854371,-153.0,0.00018667,2]
[399249267,1766203854382,-153.0,0.00018667,2]
[399249268,1766203854394,-153.0,0.00018667,2]
[399249269,1766203854404,-153.0,0.00018667,2]
[399249270,1766203854414,-153.0,0.00018667,2]
[399249271,1766203854425,-153.0,0.00018667,2]
[399249272,1766203854437,-153.0,0.00018667,2]
[399249273,1766203854448,-153.0,0.00018667,2]
[399249274,1766203854460,-153.0,0.00018667,2]
[399249275,1766203854474,-153.0,0.00018667,2]
[399249276,1766203854487,-153.0,0.00018667,2]
[399249277,1766203854499,-153.0,0.00018667,2]
[399249278,1766203854509,-153.0,0.00018667,2]
[399249279,1766203854521,-153.0,0.00018667,2]
[399249280,1766203854535,-153.0,0.00018667,2]
[399249281,1766203854546,-153.0,0.00018667,2]
[399249282,1766203854557,-153.0,0.00018667,2]
[399249283,1766203854568,-153.0,0.00018667,2]
[399249284,1766203854579,-153.0,0.00018667,2]
[399249285,1766203854589,-153.0,0.00018667,2]
[399249286,1766203854600,-153.0,0.00018667,2]
[399249287,1766203854611,-153.0,0.00018667,2]
[399249288,1766203854622,-286.73218357,0.00018667,2]
[399249289,1766203854634,-153.0,0.00018667,2]
[399249290,1766203854648,-153.0,0.00018667,2]
[399249291,1766203854660,-153.0,0.00018667,2]
[399249292,1766203854671,-153.0,0.00018667,2]
[399249293,1766203854683,-153.0,0.00018667,2]
[399249294,1766203854694,-153.0,0.00018667,2]
[399249295,1766203854705,-153.0,0.00018667,2]
[399249296,1766203854716,-153.0,0.00018667,2]
[399249297,1766203854728,-281.15150215,0.00018667,2]
[399249298,1766203854741,-1000.0,0.0001876,2]
[399249299,1766203854754,-237.68541436,0.00018768,2]
[399249300,1766203854766,-761.0,0.00018768,2]
[399249301,1766203854779,-622.0,0.00018768,2]
[399249302,1766203854789,-545.0,0.00018768,2]
[399249303,1766203854801,-720.0,0.00018768,2]
[399249304,1766203854815,-1693.0,0.00018768,2]
[399249305,1766203854827,-566.0,0.00018768,2]
[399249306,1766203854839,-434.0,0.00018768,2]
[399249307,1766203854852,-519.0,0.00018768,2]
[399249308,1766203854863,-554.0,0.00018768,2]
[399249309,1766203854874,-1222.0,0.00018768,2]
[399249310,1766203854886,-150.96,0.000188,2]
[399249311,1766203854897,-150.96,0.000188,2]
[399249312,1766203854908,-150.96,0.000188,2]
[399249313,1766203854920,-150.96,0.000188,2]
[399249314,1766203854931,-150.96,0.000188,2]
[399249315,1766203854943,-150.96,0.000188,2]
[399249316,1766203854954,-150.96,0.000188,2]
[399249317,1766203854968,-3379.79410737,0.000189,3]
[399249318,1766203854979,-761.0,0.00018905,2]
[399249319,1766203854990,-622.0,0.00018905,2]
[399249320,1766203855002,-545.0,0.00018905,2]
[399249321,1766203855021,-720.0,0.00018905,2]
[399249322,1766203855036,-1693.0,0.00018905,2]
[399249323,1766203855050,-566.0,0.00018905,2]
[399249324,1766203855061,-434.0,0.00018905,2]
[399249325,1766203855072,-519.0,0.00018905,2]
[399249326,1766203855083,-554.0,0.00018905,2]
[399249327,1766203855094,-1222.0,0.00018905,2]
[399249328,1766203855104,-152.0,0.00018955,6]
[399249329,1766203855116,-500.0,0.00018959,2]
[399249330,1766203855129,-8626.9,0.00018963,2]
[399249331,1766203855142,-500.0,0.00018974,2]
[399249332,1766203855155,-500.0,0.00018974,2]
[399249333,1766203855165,-1019.77444314,0.00018999,5]
[399249334,1766203855175,-29251.66875769,0.00019,2]
[399249335,1766203855185,-211.45739851,0.00019,2]
[399249336,1766203855195,-347.33407774,0.00019,2]
[399249337,1766203855206,-300.0,0.00019,2]
[399249338,1766203855217,-761.0,0.00019042,2]
[399249339,1766203855228,-622.0,0.00019042,2]
[399249340,1766203855241,-545.0,0.00019042,2]
[399249341,1766203855254,-720.0,0.00019042,2]
[399249342,1766203855268,-1693.0,0.00019042,2]
[399249343,1766203855279,-566.0,0.00019042,2]
[399249344,1766203855290,-434.0,0.00019042,2]
[399249345,1766203855300,-519.0,0.00019042,2]
[399249346,1766203855310,-554.0,0.00019042,2]
[399249347,1766203855321,-1222.0,0.00019042,2]
[399249348,1766203855331,-452.8,0.00019045,2]
[399249349,1766203855342,-796.19226871,0.00019168,2]
[399249350,1766203855352,-720.0,0.00019178,2]
[399249351,1766203855363,-151.0,0.00019178,2]
[399249352,1766203855374,-151.0,0.00019178,2]
[399249353,1766203855386,-761.0,0.00019179,2]
[399249354,1766203855396,-622.0,0.00019179,2]
[399249355,1766203855407,-545.0,0.00019179,2]
[399249356,1766203855417,-720.0,0.00019179,2]
[399249357,1766203855428,-1693.0,0.00019179,2]
[399249358,1766203855439,-566.0,0.00019179,2]
[399249359,1766203855450,-434.0,0.00019179,2]
[399249360,1766203855460,-519.0,0.00019179,2]
[399249361,1766203855471,-554.0,0.00019179,2]
[399249362,1766203855482,-1222.0,0.00019179,2]
[399249363,1766203855492,-177.408,0.000192,2]
[399249364,1766203855503,-150.0,0.000192,2]
[399249365,1766203855514,-150.0,0.000192,2]
[399249366,1766203855525,-150.0,0.000192,2]
[399249367,1766203855536,-150.144,0.000192,2]
[399249368,1766203855561,-150.0,0.000192,2]
[399249369,1766203855574,-615.844,0.000192,2]
[399249370,1766203855586,-1332.562,0.000192,2]
[399249371,1766203855597,-1647.057,0.000192,2]
[399249372,1766203855608,-1780.222,0.000192,2]
[399249373,1766203855620,-1197.0,0.000192,2]
[399249374,1766203855631,-914.116,0.000192,2]
[399249375,1766203855643,-398.53152918,0.00019252,2]
[399249376,1766203855654,-761.0,0.00019316,2]
[399249377,1766203855665,-622.0,0.00019316,2]
[399249378,1766203855676,-545.0,0.00019316,2]
[399249379,1766203855688,-720.0,0.00019316,2]
[399249380,1766203855699,-1693.0,0.00019316,2]
[399249381,1766203855711,-566.0,0.00019316,2]
[399249382,1766203855722,-434.0,0.00019316,2]
[399249383,1766203855732,-519.0,0.00019316,2]
[399249384,1766203855744,-554.0,0.00019316,2]
[399249385,1766203855757,-1222.0,0.00019316,2]
[399249386,1766203855769,-152.0,0.00019325,7]
[399249387,1766203855781,-1000.0,0.00019438,2]
[399249388,1766203855792,-761.0,0.00019453,2]
[399249389,1766203855803,-622.0,0.00019453,2]
[399249390,1766203855814,-545.0,0.00019453,2]
[399249391,1766203855826,-720.0,0.00019453,2]
[399249392,1766203855837,-1693.0,0.00019453,2]
[399249393,1766203855848,-566.0,0.00019453,2]
[399249394,1766203855858,-434.0,0.00019453,2]
[399249395,1766203855870,-519.0,0.00019453,2]
[399249396,1766203855881,-554.0,0.00019453,2]
[399249397,1766203855892,-1222.0,0.00019453,2]
[399249398,1766203855904,-2428.0,0.00019471,2]
[399249399,1766203855915,-6528.0,0.00019471,2]
[399249400,1766203855926,-337.46293072,0.00019533,2]
[399249401,1766203855937,-761.0,0.0001959,2]
[399249402,1766203855948,-622.0,0.0001959,2]
[399249403,1766203855959,-545.0,0.0001959,2]
[399249404,1766203855972,-720.0,0.0001959,2]
[399249405,1766203855983,-1693.0,0.0001959,2]
[399249406,1766203855994,-566.0,0.0001959,2]
[399249407,1766203856005,-434.0,0.0001959,2]
[399249408,1766203856016,-519.0,0.0001959,2]
[399249409,1766203856027,-554.0,0.0001959,2]
[399249410,1766203856038,-1222.0,0.0001959,2]
[399249411,1766203856048,-500.0,0.00019621,2]
[399249412,1766203856059,-500.0,0.00019621,2]
[399249413,1766203856070,-152.0,0.00019696,8]
[399249414,1766203856081,-346.92554585,0.00019712,2]
[399249415,1766203856092,-1199.0,0.00019714,2]
[399249416,1766203856103,-666.72878,0.00019714,2]
[399249417,1766203856114,-825.65138265,0.00019716,2]
[399249418,1766203856138,-764.55341749,0.00019727,2]
[399249419,1766203856149,-645.51270306,0.00019727,2]
[399249420,1766203856161,-560.09404515,0.00019727,2]
[399249421,1766203856173,-730.76159208,0.00019727,2]
[399249422,1766203856184,-1708.03109611,0.00019727,2]
[399249423,1766203856197,-585.97799798,0.00019727,2]
[399249424,1766203856208,-290.32985892,0.00019727,2]
[399249425,1766203856220,-370.88126201,0.00019727,2]
[399249426,1766203856233,-557.69482467,0.00019727,2]
[399249427,1766203856244,-1244.07268644,0.00019727,2]
[399249428,1766203856255,-154.0,0.000198,2]
[399249429,1766203856266,-154.0,0.000198,2]
[399249430,1766203856278,-152.55501476,0.000198,2]
[399249431,1766203856289,-153.0,0.000198,2]
[399249432,1766203856300,-153.0,0.000198,2]
[399249433,1766203856311,-153.0,0.000198,2]
[399249434,1766203856322,-153.0,0.000198,2]
[399249435,1766203856333,-153.0,0.000198,2]
[399249436,1766203856344,-153.0,0.000198,2]
[399249437,1766203856356,-835.0,0.000198,2]
[399249438,1766203856367,-153.0,0.000198,2]
[399249439,1766203856379,-153.0,0.000198,2]
[399249440,1766203856390,-153.0,0.000198,2]
[399249441,1766203856401,-153.0,0.000198,2]
[399249442,1766203856412,-153.0,0.000198,2]
[399249443,1766203856424,-291.0,0.000198,2]
[399249444,1766203856435,-153.0,0.000198,2]
[399249445,1766203856445,-153.0,0.000198,2]
[399249446,1766203856456,-688.10198554,0.0001995,15]
[399249447,1766203856466,-1000.0,0.0002,6]
[399249448,1766203856477,-16196.55,0.0002,2]
[399249449,1766203856487,-500.0,0.0002,2]
[399249450,1766203856497,-500.0,0.0002,2]
[399249451,1766203856508,-500.0,0.0002,2]
[399249452,1766203856519,-500.063452,0.00020001,2]
[399249453,1766203856529,-152.0,0.00020066,9]
[399249454,1766203856540,-1002.71084025,0.000201,2]
[399249455,1766203856550,-1000.0,0.00020116,2]
[399249456,1766203856561,-941.62,0.00020187,2]
[399249457,1766203856572,-222.0,0.00020301,2]
[399249458,1766203856582,-500.0,0.00020301,2]
[399249459,1766203856592,-501.29502757,0.00020319,2]
[399249460,1766203856602,-500.0,0.00020356,7]
[399249461,1766203856612,-600.0,0.00020356,7]
[399249462,1766203856622,-500.0,0.00020356,7]
[399249463,1766203856632,-152.0,0.00020437,10]
[399249464,1766203856643,-659.09,0.00020548,2]
[399249465,1766203856653,-301.0,0.000206,2]
[399249466,1766203856664,-976.0,0.000206,2]
[399249467,1766203856674,-777.0,0.000206,2]
[399249468,1766203856684,-2000.0,0.000207,2]
[399249469,1766203856695,-223.0315306,0.0002076,2]
[399249470,1766203856706,-1000.0,0.00020795,2]
[399249471,1766203856716,-200.0,0.000208,2]
[399249472,1766203856727,-152.0,0.00020807,11]
[399249473,1766203856737,-8626.9,0.00020966,2]
[399249474,1766203856749,-350.0,0.00021,2]
[399249475,1766203856762,-359.76179104,0.00021081,2]